[Event "*** Titled Tuesday Blitz"]
[Site "Chess.com"]
[Date "2019.10.01"]
[Round "9"]
[White "francyIM"]
[Black "Mikhail_Golubev"]
[Result "1-0"]
[WhiteElo "2667"]
[BlackElo "2513"]
[TimeControl "180+2"]
[EndTime "15:08:36 PDT"]
[Termination "francyIM won by resignation"]

1. d4 {[%clk 0:03:01.9]} 1... Nf6 {[%clk 0:03:00.1]} 2. c4 {[%clk 0:03:03.3]}
2... g6 {[%clk 0:03:01]} 3. Nf3 {[%clk 0:03:03.1]} 3... Bg7 {[%clk 0:03:02.4]}
4. g3 {[%clk 0:03:04.4]} 4... O-O {[%clk 0:03:03.6]} 5. Bg2 {[%clk 0:03:05.8]}
5... d6 {[%clk 0:03:05.4]} 6. O-O {[%clk 0:03:06.8]} 6... Nbd7 {[%clk 0:03:07]}
7. Nc3 {[%clk 0:03:07.7]} 7... e5 {[%clk 0:03:08.5]} 8. e4 {[%clk 0:03:06.7]}
8... exd4 {[%clk 0:03:07.7]} 9. Nxd4 {[%clk 0:03:08.2]} 9... Re8 {[%clk
0:03:08.7]} 10. h3 {[%clk 0:02:58.5]} 10... a6 {[%clk 0:03:09.1]} 11. Rb1 {[%clk
0:02:55]} 11... Rb8 {[%clk 0:03:08.7]} 12. Re1 {[%clk 0:02:51.5]} 12... Nc5
{[%clk 0:03:05.7]} 13. b4 {[%clk 0:02:50.4]} 13... Ncd7 {[%clk 0:03:05.8]} 14.
Bb2 {[%clk 0:02:48.9]} 14... Ne5 {[%clk 0:03:02.2]} 15. Qe2 {[%clk 0:02:49.4]}
15... c5 {[%clk 0:02:57]} 16. bxc5 {[%clk 0:02:47.8]} 16... dxc5 {[%clk
0:02:58.1]} 17. Nb3 {[%clk 0:02:48.2]} 17... Be6 {[%clk 0:02:51.6]} 18. Red1
{[%clk 0:02:45.6]} 18... Qc8 {[%clk 0:02:49.9]} 19. Nd5 {[%clk 0:02:44.2]} 19...
Nxd5 {[%clk 0:02:49.7]} 20. cxd5 {[%clk 0:02:44.1]} 20... Bxh3 {[%clk
0:02:49.5]} 21. Rbc1 {[%clk 0:02:35.1]} 21... Bg4 {[%clk 0:02:42.2]} 22. f3
{[%clk 0:02:34.3]} 22... Nxf3+ {[%clk 0:02:34.8]} 23. Bxf3 {[%clk 0:02:30.2]}
23... Bxf3 {[%clk 0:02:35.5]} 24. Qxf3 {[%clk 0:02:32]} 24... Bxb2 {[%clk
0:02:34.8]} 25. Rxc5 {[%clk 0:02:33]} 25... Qd7 {[%clk 0:02:21.5]} 26. d6 {[%clk
0:02:29.7]} 26... Rbd8 {[%clk 0:01:47.5]} 27. Rc7 {[%clk 0:02:23.2]} 27... Qe6
{[%clk 0:01:42.3]} 28. Nc5 {[%clk 0:02:18.9]} 28... Qf6 {[%clk 0:01:28.5]} 29.
Qxf6 {[%clk 0:02:15.8]} 29... Bxf6 {[%clk 0:01:28.6]} 30. Nxb7 {[%clk
0:02:14.1]} 30... Rb8 {[%clk 0:01:26.8]} 31. d7 {[%clk 0:02:14.6]} 31... Rxe4
{[%clk 0:01:22.3]} 32. Rc8+ {[%clk 0:02:14.4]} 1-0

[Event "*** Titled Tuesday Blitz"]
[Site "Chess.com"]
[Date "2019.10.01"]
[Round "9"]
[White "Grandmaster1369"]
[Black "ChessWarrior7197"]
[Result "1-0"]
[WhiteElo "2710"]
[BlackElo "2892"]
[TimeControl "180+2"]
[EndTime "15:08:43 PDT"]
[Termination "Grandmaster1369 won by resignation"]

1. e4 {[%clk 0:03:01.9]} 1... c5 {[%clk 0:03:00.4]} 2. Nf3 {[%clk 0:03:02.7]}
2... d6 {[%clk 0:03:01.2]} 3. Bb5+ {[%clk 0:03:03.1]} 3... Bd7 {[%clk
0:03:01.8]} 4. Bxd7+ {[%clk 0:03:04.2]} 4... Qxd7 {[%clk 0:03:03.7]} 5. O-O
{[%clk 0:03:05.6]} 5... Nf6 {[%clk 0:03:04.7]} 6. Re1 {[%clk 0:03:06.7]} 6...
Nc6 {[%clk 0:03:06.1]} 7. c3 {[%clk 0:03:08.1]} 7... e6 {[%clk 0:03:06.5]} 8. d4
{[%clk 0:03:09.6]} 8... cxd4 {[%clk 0:03:08.4]} 9. cxd4 {[%clk 0:03:11.4]} 9...
d5 {[%clk 0:03:09.9]} 10. e5 {[%clk 0:03:13]} 10... Ne4 {[%clk 0:03:11.2]} 11.
Nbd2 {[%clk 0:03:14.5]} 11... Nxd2 {[%clk 0:03:12.7]} 12. Bxd2 {[%clk
0:03:16.4]} 12... Bb4 {[%clk 0:03:13.9]} 13. Rc1 {[%clk 0:03:07.7]} 13... O-O
{[%clk 0:03:12.7]} 14. Rxc6 {[%clk 0:03:03.6]} 14... Qxc6 {[%clk 0:03:09.6]} 15.
Bxb4 {[%clk 0:03:04.1]} 15... Rfc8 {[%clk 0:03:11.5]} 16. h4 {[%clk 0:02:54.1]}
16... a5 {[%clk 0:03:09.9]} 17. Bd2 {[%clk 0:02:38.7]} 17... Qc2 {[%clk
0:03:08.6]} 18. Qxc2 {[%clk 0:02:35]} 18... Rxc2 {[%clk 0:03:08.5]} 19. Rb1
{[%clk 0:02:36.4]} 19... b5 {[%clk 0:03:00.1]} 20. Kf1 {[%clk 0:02:36.3]} 20...
b4 {[%clk 0:02:57.9]} 21. Ke2 {[%clk 0:02:35.8]} 21... f6 {[%clk 0:02:59.3]} 22.
Ne1 {[%clk 0:02:32.7]} 22... Rc4 {[%clk 0:02:59.6]} 23. Nf3 {[%clk 0:02:22.3]}
23... fxe5 {[%clk 0:02:58.2]} 24. dxe5 {[%clk 0:02:13.3]} 24... Re4+ {[%clk
0:02:57.9]} 25. Kd3 {[%clk 0:02:12.7]} 25... Rg4 {[%clk 0:02:58.8]} 26. g3
{[%clk 0:02:09.4]} 26... Rf8 {[%clk 0:02:58.9]} 27. Bf4 {[%clk 0:02:10.3]} 27...
Rgxf4 {[%clk 0:02:54.3]} 28. gxf4 {[%clk 0:02:11.2]} 28... Rxf4 {[%clk
0:02:56.2]} 29. Nd4 {[%clk 0:02:02.6]} 29... Rxf2 {[%clk 0:02:56.2]} 30. Nxe6
{[%clk 0:02:03.2]} 30... Kf7 {[%clk 0:02:50.9]} 31. Nd4 {[%clk 0:02:02.3]} 31...
Rh2 {[%clk 0:02:48.7]} 32. Rf1+ {[%clk 0:01:58.6]} 32... Ke7 {[%clk 0:02:48.7]}
33. e6 {[%clk 0:01:59.1]} 33... Rh3+ {[%clk 0:02:47.6]} 34. Kc2 {[%clk
0:01:58.6]} 34... Kd6 {[%clk 0:02:41.8]} 35. Re1 {[%clk 0:01:49.2]} 35... Ke7
{[%clk 0:02:29.7]} 36. Nf5+ {[%clk 0:01:48.1]} 36... Ke8 {[%clk 0:02:28.7]} 37.
e7 {[%clk 0:01:48.4]} 37... Rh2+ {[%clk 0:02:26.1]} 38. Kb3 {[%clk 0:01:48.7]}
38... a4+ {[%clk 0:02:17.3]} 39. Kxa4 {[%clk 0:01:48.1]} 1-0

[Event "*** Titled Tuesday Blitz"]
[Site "Chess.com"]
[Date "2019.10.01"]
[Round "9"]
[White "Saitama_Hero"]
[Black "Casablanca"]
[Result "1-0"]
[WhiteElo "2326"]
[BlackElo "2184"]
[TimeControl "180+2"]
[EndTime "15:09:12 PDT"]
[Termination "Saitama_Hero won by resignation"]

1. d4 {[%clk 0:03:01.9]} 1... e6 {[%clk 0:02:59.4]} 2. c4 {[%clk 0:02:58]} 2...
Bb4+ {[%clk 0:03:00.4]} 3. Nc3 {[%clk 0:02:57.8]} 3... c5 {[%clk 0:03:00.5]} 4.
a3 {[%clk 0:02:56.1]} 4... Ba5 {[%clk 0:02:52]} 5. dxc5 {[%clk 0:02:55.7]} 5...
Bxc3+ {[%clk 0:02:52.9]} 6. bxc3 {[%clk 0:02:55.6]} 6... Qc7 {[%clk 0:02:54.1]}
7. e4 {[%clk 0:02:54.8]} 7... Qxc5 {[%clk 0:02:54.2]} 8. Be3 {[%clk 0:02:54.9]}
8... Qc7 {[%clk 0:02:54.7]} 9. f4 {[%clk 0:02:53.5]} 9... d6 {[%clk 0:02:55.9]}
10. Nf3 {[%clk 0:02:53.5]} 10... Nd7 {[%clk 0:02:54.5]} 11. Bd3 {[%clk
0:02:54.8]} 11... Ne7 {[%clk 0:02:54.5]} 12. O-O {[%clk 0:02:55.9]} 12... Nc5
{[%clk 0:02:55.3]} 13. Bc2 {[%clk 0:02:55.5]} 13... b6 {[%clk 0:02:56.1]} 14.
Nd4 {[%clk 0:02:52.5]} 14... Bd7 {[%clk 0:02:51.3]} 15. Qf3 {[%clk 0:02:48.2]}
15... f6 {[%clk 0:02:38.5]} 16. e5 {[%clk 0:02:46.2]} 16... O-O-O {[%clk
0:02:29.1]} 17. Qa8+ {[%clk 0:02:36]} 17... Qb8 {[%clk 0:02:28.6]} 18. Qxb8+
{[%clk 0:02:37.1]} 18... Kxb8 {[%clk 0:02:30.5]} 19. exd6 {[%clk 0:02:37.9]}
19... Nc8 {[%clk 0:02:31.6]} 20. Rab1 {[%clk 0:02:12.5]} 20... Nxd6 {[%clk
0:02:23.6]} 21. Rb4 {[%clk 0:02:07.3]} 21... Rc8 {[%clk 0:02:15.2]} 22. a4
{[%clk 0:02:01.9]} 22... Ndb7 {[%clk 0:02:15.8]} 23. Nb5 {[%clk 0:01:49.5]}
23... Rhd8 {[%clk 0:02:15.1]} 24. Rfb1 {[%clk 0:01:47.6]} 24... Na6 {[%clk
0:02:12.3]} 25. R4b2 {[%clk 0:01:45.7]} 25... Rxc4 {[%clk 0:02:12.9]} 26. Nxa7
{[%clk 0:01:21.8]} 26... Kxa7 {[%clk 0:02:08.8]} 27. Rxb6 {[%clk 0:01:07.1]}
27... Nbc5 {[%clk 0:01:50.8]} 28. Bd3 {[%clk 0:01:05.5]} 28... Rxa4 {[%clk
0:01:50.9]} 29. Bxa6 {[%clk 0:01:04.5]} 29... Rxa6 {[%clk 0:01:51.4]} 30. Bxc5
{[%clk 0:01:04.6]} 30... Rxb6 {[%clk 0:01:47.7]} 31. Bxb6+ {[%clk 0:01:01.5]}
1-0

[Event "*** Titled Tuesday Blitz"]
[Site "Chess.com"]
[Date "2019.10.01"]
[Round "9"]
[White "Micki-taryan"]
[Black "ExploringChess"]
[Result "1/2-1/2"]
[WhiteElo "2963"]
[BlackElo "2938"]
[TimeControl "180+2"]
[EndTime "15:09:19 PDT"]
[Termination "Game drawn by agreement"]

1. d4 {[%clk 0:03:01.9]} 1... g6 {[%clk 0:03:00]} 2. Nf3 {[%clk 0:03:02.6]} 2...
Bg7 {[%clk 0:03:01]} 3. Nc3 {[%clk 0:03:03.1]} 3... d5 {[%clk 0:03:00.7]} 4. Bf4
{[%clk 0:03:03.8]} 4... c6 {[%clk 0:02:58.9]} 5. e3 {[%clk 0:03:04.4]} 5... Nf6
{[%clk 0:02:58]} 6. Be2 {[%clk 0:03:05]} 6... Bf5 {[%clk 0:02:58]} 7. Ne5 {[%clk
0:02:59.8]} 7... Ne4 {[%clk 0:02:56.9]} 8. O-O {[%clk 0:02:53.1]} 8... Nxc3
{[%clk 0:02:51.2]} 9. bxc3 {[%clk 0:02:55]} 9... Nd7 {[%clk 0:02:52.7]} 10. Nxd7
{[%clk 0:02:53.9]} 10... Qxd7 {[%clk 0:02:53.2]} 11. c4 {[%clk 0:02:55.4]} 11...
dxc4 {[%clk 0:02:50.6]} 12. Bxc4 {[%clk 0:02:57.3]} 12... O-O {[%clk 0:02:49.4]}
13. c3 {[%clk 0:02:58.8]} 13... c5 {[%clk 0:02:46.9]} 14. Qb3 {[%clk 0:02:57.2]}
14... b6 {[%clk 0:02:44.3]} 15. Rfd1 {[%clk 0:02:55.1]} 15... cxd4 {[%clk
0:02:41.3]} 16. cxd4 {[%clk 0:02:57]} 16... Rac8 {[%clk 0:02:38.6]} 17. a4
{[%clk 0:02:58.1]} 17... Be6 {[%clk 0:02:32.7]} 18. Bxe6 {[%clk 0:02:53.1]}
18... Qxe6 {[%clk 0:02:34.6]} 19. Qxe6 {[%clk 0:02:51.7]} 19... fxe6 {[%clk
0:02:36.5]} 20. Rdc1 {[%clk 0:02:52.1]} 20... Rxc1+ {[%clk 0:02:21.9]} 21. Rxc1
{[%clk 0:02:51.7]} 21... Bxd4 {[%clk 0:02:23.3]} 22. Rc7 {[%clk 0:02:35.1]}
22... Bf6 {[%clk 0:02:19.5]} 23. Rxa7 {[%clk 0:02:32.8]} 23... Rc8 {[%clk
0:02:20.8]} 24. g4 {[%clk 0:02:28.3]} 24... Rc4 {[%clk 0:02:14.6]} 25. h3 {[%clk
0:02:14.8]} 25... e5 {[%clk 0:02:11.4]} 26. Bg3 {[%clk 0:02:15.8]} 26... g5
{[%clk 0:02:11.6]} 27. Kg2 {[%clk 0:02:11.2]} 27... Kf7 {[%clk 0:02:06.2]} 28.
Ra6 {[%clk 0:02:02.8]} 28... Rb4 {[%clk 0:02:03.9]} 29. f3 {[%clk 0:01:55]}
29... e4 {[%clk 0:01:59.6]} 30. fxe4 {[%clk 0:01:54]} 30... Rxe4 {[%clk
0:01:58.6]} 31. Kf3 {[%clk 0:01:54.5]} 31... Rb4 {[%clk 0:01:56.6]} 32. Bc7
{[%clk 0:01:48.9]} 32... b5 {[%clk 0:01:55]} 1/2-1/2

[Event "*** Titled Tuesday Blitz"]
[Site "Chess.com"]
[Date "2019.10.01"]
[Round "9"]
[White "TST2014"]
[Black "dolynachess"]
[Result "0-1"]
[WhiteElo "2537"]
[BlackElo "2412"]
[TimeControl "180+2"]
[EndTime "15:09:22 PDT"]
[Termination "dolynachess won by resignation"]

1. d4 {[%clk 0:03:01.9]} 1... Nf6 {[%clk 0:03:00.5]} 2. c4 {[%clk 0:03:02.8]}
2... c5 {[%clk 0:03:01.6]} 3. d5 {[%clk 0:03:03.7]} 3... b5 {[%clk 0:03:02.3]}
4. cxb5 {[%clk 0:03:04.6]} 4... a6 {[%clk 0:03:03.9]} 5. bxa6 {[%clk 0:03:06.3]}
5... Bxa6 {[%clk 0:03:05.3]} 6. Nc3 {[%clk 0:03:07.4]} 6... d6 {[%clk
0:03:06.5]} 7. e4 {[%clk 0:03:08.5]} 7... Bxf1 {[%clk 0:03:08.1]} 8. Kxf1 {[%clk
0:03:10.4]} 8... Nbd7 {[%clk 0:03:08.9]} 9. g3 {[%clk 0:03:11.7]} 9... g6 {[%clk
0:03:10.6]} 10. Kg2 {[%clk 0:03:13.1]} 10... Bg7 {[%clk 0:03:12.5]} 11. Nf3
{[%clk 0:03:14.4]} 11... O-O {[%clk 0:03:14.3]} 12. a4 {[%clk 0:03:15.3]} 12...
Ra6 {[%clk 0:03:15.1]} 13. Qe2 {[%clk 0:03:11.7]} 13... Qa8 {[%clk 0:03:16.3]}
14. Ra3 {[%clk 0:03:01.4]} 14... Rb8 {[%clk 0:03:16.7]} 15. Nd2 {[%clk
0:02:58.3]} 15... Ne8 {[%clk 0:03:02.7]} 16. Nc4 {[%clk 0:02:55.2]} 16... Bxc3
{[%clk 0:02:56.8]} 17. Rxc3 {[%clk 0:02:55.2]} 17... Rxa4 {[%clk 0:02:57.4]} 18.
h4 {[%clk 0:02:56.3]} 18... Qa6 {[%clk 0:02:42]} 19. h5 {[%clk 0:02:52.5]} 19...
Ne5 {[%clk 0:02:35.5]} 20. b3 {[%clk 0:02:49.1]} 20... Ra2 {[%clk 0:02:33]} 21.
Qe3 {[%clk 0:02:41.5]} 21... Ng4 {[%clk 0:02:23.7]} 22. Qg5 {[%clk 0:02:41.3]}
22... Nxf2 {[%clk 0:02:10.8]} 23. Qxe7 {[%clk 0:02:26]} 23... Nxe4+ {[%clk
0:01:39.9]} 24. Kf3 {[%clk 0:02:18.3]} 24... Nxc3 {[%clk 0:01:19.6]} 25. hxg6
{[%clk 0:02:17.8]} 25... hxg6 {[%clk 0:01:10.3]} 26. Qh4 {[%clk 0:02:15.8]}
26... Kf8 {[%clk 0:01:03.5]} 27. Bh6+ {[%clk 0:02:15.9]} 27... Ng7 {[%clk
0:00:58.4]} 28. Qf6 {[%clk 0:02:08.1]} 28... Rf2+ {[%clk 0:00:58.6]} 29. Kxf2
{[%clk 0:02:05.3]} 29... Ne4+ {[%clk 0:00:59.4]} 30. Kf3 {[%clk 0:02:06.3]}
30... Nxf6 {[%clk 0:01:00.5]} 31. Ne3 {[%clk 0:01:54.1]} 31... Rxb3 {[%clk
0:00:59.7]} 0-1

[Event "*** Titled Tuesday Blitz"]
[Site "Chess.com"]
[Date "2019.10.01"]
[Round "9"]
[White "Korchmar_Vasiliy"]
[Black "Andrei_Belozerov"]
[Result "1-0"]
[WhiteElo "2686"]
[BlackElo "2532"]
[TimeControl "180+2"]
[EndTime "15:09:35 PDT"]
[Termination "Korchmar_Vasiliy won by checkmate"]

1. d4 {[%clk 0:03:01.9]} 1... d5 {[%clk 0:03:00.5]} 2. Nf3 {[%clk 0:03:03.2]}
2... Nf6 {[%clk 0:03:00.6]} 3. Bf4 {[%clk 0:03:04.7]} 3... c5 {[%clk 0:03:01.6]}
4. e3 {[%clk 0:03:05.8]} 4... Nc6 {[%clk 0:03:02.5]} 5. Nbd2 {[%clk 0:03:07]}
5... e6 {[%clk 0:03:02.3]} 6. c3 {[%clk 0:03:07.9]} 6... Bd6 {[%clk 0:03:03.3]}
7. Bg3 {[%clk 0:03:09.4]} 7... O-O {[%clk 0:03:02.2]} 8. Bd3 {[%clk 0:03:10.6]}
8... b6 {[%clk 0:03:02.5]} 9. Qe2 {[%clk 0:03:11.3]} 9... Bb7 {[%clk 0:03:01.7]}
10. Rd1 {[%clk 0:03:12.8]} 10... Re8 {[%clk 0:02:43.9]} 11. e4 {[%clk
0:03:08.1]} 11... Be7 {[%clk 0:02:38.1]} 12. e5 {[%clk 0:03:08.4]} 12... Nd7
{[%clk 0:02:37.2]} 13. a3 {[%clk 0:03:08.8]} 13... f6 {[%clk 0:02:13.4]} 14. O-O
{[%clk 0:02:20.6]} 14... fxe5 {[%clk 0:02:08.1]} 15. Nxe5 {[%clk 0:02:15.5]}
15... Ndxe5 {[%clk 0:02:07.8]} 16. dxe5 {[%clk 0:02:17.4]} 16... Bf8 {[%clk
0:01:52.2]} 17. f4 {[%clk 0:01:55.9]} 17... Ne7 {[%clk 0:01:46.4]} 18. Nf3
{[%clk 0:01:48.7]} 18... Qc7 {[%clk 0:01:36]} 19. Bxh7+ {[%clk 0:01:40.3]} 19...
Kxh7 {[%clk 0:01:33.1]} 20. Ng5+ {[%clk 0:01:42.2]} 20... Kg6 {[%clk 0:00:31.7]}
21. Qg4 {[%clk 0:01:42.5]} 21... Qc8 {[%clk 0:00:21.2]} 22. Qh4 {[%clk
0:01:43.2]} 22... Kf5 {[%clk 0:00:10.3]} 23. Qh3+ {[%clk 0:01:44.5]} 23... Kg6
{[%clk 0:00:10.5]} 24. Qh7# {[%clk 0:01:46.4]} 1-0

[Event "*** Titled Tuesday Blitz"]
[Site "Chess.com"]
[Date "2019.10.01"]
[Round "9"]
[White "WPWPWP-2015"]
[Black "aa175"]
[Result "1-0"]
[WhiteElo "2474"]
[BlackElo "2301"]
[TimeControl "180+2"]
[EndTime "15:09:46 PDT"]
[Termination "WPWPWP-2015 won by resignation"]

1. e4 {[%clk 0:03:01.9]} 1... d5 {[%clk 0:02:56.5]} 2. exd5 {[%clk 0:02:52]}
2... Qxd5 {[%clk 0:02:58.4]} 3. Nc3 {[%clk 0:02:52.6]} 3... Qd8 {[%clk
0:02:57.8]} 4. Nf3 {[%clk 0:02:52.4]} 4... Bg4 {[%clk 0:02:52.2]} 5. h3 {[%clk
0:02:52.7]} 5... Bxf3 {[%clk 0:02:03.3]} 6. Qxf3 {[%clk 0:02:52.2]} 6... Nc6
{[%clk 0:02:05.2]} 7. Bb5 {[%clk 0:02:50.2]} 7... Qd7 {[%clk 0:01:31.9]} 8. d4
{[%clk 0:02:43.3]} 8... a6 {[%clk 0:01:30.4]} 9. Bxc6 {[%clk 0:02:43]} 9... Qxc6
{[%clk 0:01:32.3]} 10. Qxc6+ {[%clk 0:02:43.3]} 10... bxc6 {[%clk 0:01:34.2]}
11. Bf4 {[%clk 0:02:43.6]} 11... O-O-O {[%clk 0:01:31]} 12. O-O-O {[%clk
0:02:44.5]} 12... Nf6 {[%clk 0:01:31.1]} 13. Rhe1 {[%clk 0:02:43]} 13... e6
{[%clk 0:01:31.7]} 14. Bg5 {[%clk 0:02:42.7]} 14... Bb4 {[%clk 0:01:28.3]} 15.
Bxf6 {[%clk 0:02:40.8]} 15... gxf6 {[%clk 0:01:30.2]} 16. Re3 {[%clk 0:02:40.8]}
16... Rhg8 {[%clk 0:01:09.4]} 17. g3 {[%clk 0:02:40.5]} 17... Rg5 {[%clk
0:01:08.7]} 18. Ne4 {[%clk 0:02:38.5]} 18... Rf5 {[%clk 0:01:04.8]} 19. c3
{[%clk 0:02:38.6]} 19... Bf8 {[%clk 0:01:03.5]} 20. Kc2 {[%clk 0:02:27.9]} 20...
h5 {[%clk 0:00:55.5]} 21. h4 {[%clk 0:02:27.1]} 21... Bh6 {[%clk 0:00:51.3]} 22.
Re2 {[%clk 0:02:27.5]} 22... e5 {[%clk 0:00:45.4]} 23. dxe5 {[%clk 0:02:16.1]}
23... Rxd1 {[%clk 0:00:47.3]} 24. Kxd1 {[%clk 0:02:16.8]} 24... fxe5 {[%clk
0:00:49.2]} 25. Nc5 {[%clk 0:02:13.4]} 25... a5 {[%clk 0:00:35.4]} 26. Nd3
{[%clk 0:02:05.1]} 26... f6 {[%clk 0:00:32.2]} 27. Nc5 {[%clk 0:02:05.8]} 27...
Bf8 {[%clk 0:00:30.7]} 28. Ne4 {[%clk 0:02:04.2]} 28... Rf3 {[%clk 0:00:30.8]}
29. Kc2 {[%clk 0:02:04.8]} 29... f5 {[%clk 0:00:25.5]} 30. Nd2 {[%clk
0:02:03.4]} 30... e4 {[%clk 0:00:21]} 31. Nxf3 {[%clk 0:02:01.6]} 31... exf3
{[%clk 0:00:22.9]} 32. Re3 {[%clk 0:02:02]} 32... f4 {[%clk 0:00:24.5]} 33. gxf4
{[%clk 0:01:59.4]} 33... Be7 {[%clk 0:00:24.3]} 34. Rxe7 {[%clk 0:01:59.2]} 1-0

[Event "*** Titled Tuesday Blitz"]
[Site "Chess.com"]
[Date "2019.10.01"]
[Round "9"]
[White "AndrewMcStone"]
[Black "PowerThinking2650"]
[Result "0-1"]
[WhiteElo "2133"]
[BlackElo "2296"]
[TimeControl "180+2"]
[EndTime "15:10:09 PDT"]
[Termination "PowerThinking2650 won by resignation"]

1. f4 {[%clk 0:03:01.9]} 1... e5 {[%clk 0:03:00]} 2. fxe5 {[%clk 0:03:01.7]}
2... d6 {[%clk 0:03:01]} 3. exd6 {[%clk 0:03:03]} 3... Bxd6 {[%clk 0:03:02.9]}
4. Nf3 {[%clk 0:03:04.2]} 4... g5 {[%clk 0:03:03.5]} 5. g3 {[%clk 0:03:05.3]}
5... g4 {[%clk 0:03:03.7]} 6. Nh4 {[%clk 0:03:06.7]} 6... Ne7 {[%clk 0:03:05.3]}
7. d4 {[%clk 0:03:07.4]} 7... Ng6 {[%clk 0:03:05.8]} 8. Nxg6 {[%clk 0:03:08.9]}
8... hxg6 {[%clk 0:03:07.7]} 9. Qd3 {[%clk 0:03:10]} 9... Nc6 {[%clk 0:03:01.3]}
10. c3 {[%clk 0:03:06.2]} 10... Qe7 {[%clk 0:02:53]} 11. Bg2 {[%clk 0:03:06]}
11... Bd7 {[%clk 0:02:46.8]} 12. e4 {[%clk 0:02:39.8]} 12... O-O-O {[%clk
0:02:44]} 13. Nd2 {[%clk 0:02:22.8]} 13... a6 {[%clk 0:02:33.3]} 14. Nc4 {[%clk
0:02:19.5]} 14... Rde8 {[%clk 0:01:44.7]} 15. Bd2 {[%clk 0:01:50.2]} 15... Bf5
{[%clk 0:01:34.5]} 16. Nxd6+ {[%clk 0:01:35.9]} 16... cxd6 {[%clk 0:01:27.3]}
17. O-O {[%clk 0:01:21.3]} 17... Bxe4 {[%clk 0:01:10.7]} 18. Bxe4 {[%clk
0:01:18.8]} 18... Qxe4 {[%clk 0:01:12.6]} 19. Qxe4 {[%clk 0:01:08.1]} 19... Rxe4
{[%clk 0:01:14.5]} 20. Rae1 {[%clk 0:00:47.9]} 20... Rxe1 {[%clk 0:01:11.6]} 21.
Rxe1 {[%clk 0:00:36.2]} 21... Kd7 {[%clk 0:01:11.8]} 22. d5 {[%clk 0:00:19.9]}
22... Ne5 {[%clk 0:01:11.3]} 23. Kf2 {[%clk 0:00:17.7]} 23... Rxh2+ {[%clk
0:01:10.8]} 24. Ke3 {[%clk 0:00:17.9]} 24... Nc4+ {[%clk 0:01:09.2]} 0-1

[Event "*** Titled Tuesday Blitz"]
[Site "Chess.com"]
[Date "2019.10.01"]
[Round "9"]
[White "FairChess_on_YouTube"]
[Black "eljanov"]
[Result "1-0"]
[WhiteElo "2980"]
[BlackElo "2803"]
[TimeControl "180+2"]
[EndTime "15:10:22 PDT"]
[Termination "FairChess_on_YouTube won by resignation"]

1. e4 {[%clk 0:03:01.6]} 1... e5 {[%clk 0:03:01.1]} 2. Nf3 {[%clk 0:03:02.4]}
2... Nc6 {[%clk 0:03:02.6]} 3. Bb5 {[%clk 0:03:03]} 3... g6 {[%clk 0:03:03.8]}
4. d4 {[%clk 0:03:00.8]} 4... exd4 {[%clk 0:03:04.1]} 5. Bg5 {[%clk 0:02:56.1]}
5... Be7 {[%clk 0:03:05.2]} 6. Bxe7 {[%clk 0:02:56.8]} 6... Qxe7 {[%clk
0:03:06.5]} 7. O-O {[%clk 0:02:57.8]} 7... Nf6 {[%clk 0:03:05.5]} 8. e5 {[%clk
0:02:56.1]} 8... Nh5 {[%clk 0:03:05.8]} 9. c3 {[%clk 0:02:51.4]} 9... O-O {[%clk
0:02:45]} 10. cxd4 {[%clk 0:02:51.4]} 10... d5 {[%clk 0:02:34.6]} 11. Nc3 {[%clk
0:02:49.4]} 11... Be6 {[%clk 0:02:23.7]} 12. Bxc6 {[%clk 0:02:38.3]} 12... bxc6
{[%clk 0:02:24.3]} 13. Qd2 {[%clk 0:02:34.8]} 13... c5 {[%clk 0:02:01.7]} 14.
dxc5 {[%clk 0:02:33.8]} 14... Qxc5 {[%clk 0:02:02.7]} 15. Rac1 {[%clk
0:02:34.6]} 15... Rab8 {[%clk 0:01:37.1]} 16. Qh6 {[%clk 0:02:27.3]} 16... f6
{[%clk 0:01:14.6]} 17. Ne4 {[%clk 0:01:57.1]} 17... Qe7 {[%clk 0:01:15]} 18.
exf6 {[%clk 0:01:55]} 18... Nxf6 {[%clk 0:01:16]} 19. Neg5 {[%clk 0:01:55.2]}
19... Bf5 {[%clk 0:01:09.3]} 20. Rfe1 {[%clk 0:01:54.9]} 20... Ne4 {[%clk
0:01:10.3]} 21. b3 {[%clk 0:01:50.3]} 21... c5 {[%clk 0:00:57.9]} 22. Nxe4
{[%clk 0:01:35.5]} 22... dxe4 {[%clk 0:00:58.2]} 23. Ng5 {[%clk 0:01:32.5]}
23... Rfe8 {[%clk 0:00:44.2]} 24. Rxc5 {[%clk 0:01:31.4]} 24... Rb7 {[%clk
0:00:37.6]} 25. Rc4 {[%clk 0:01:19.3]} 25... Rd7 {[%clk 0:00:32.4]} 26. h3
{[%clk 0:01:18.5]} 26... Qf6 {[%clk 0:00:20.9]} 27. g4 {[%clk 0:01:17.4]} 27...
Rd2 {[%clk 0:00:08.7]} 1-0